bitfinex-derivatives/quotes_SOLF0:USTF0_20250212
["timestamp","ask_amount","ask_price","bid_price","bid_amount"]
[1739321179491,13.83906664,197.59,197.55,139.71466936]
[1739321179997,18.90106664,197.56,197.55,139.71466936]
[1739321181095,13.83906664,197.56,197.55,139.71466936]
[1739321181698,18.90106664,197.56,197.55,139.71466936]
[1739321182095,18.90106664,197.56,197.55,73.9065942]
[1739321182397,18.90106664,197.56,197.55,23.74379536]
[1739321182597,18.90106664,197.56,197.55,7.31019536]
[1739321182788,18.90106664,197.56,197.55,9.536e-05]
[1739321184297,5.0622,197.55,197.54,174.67658404]
[1739321184995,5.0622,197.55,197.54,4.734e-05]
[1739321185197,5.0633,197.51,197.43,5.0653]
[1739321185398,18.90236664,197.51,197.41,280.53019234]
[1739321185593,18.90236664,197.51,197.42,5.0655]
[1739321186195,18.90236664,197.51,197.41,280.53019234]
[1739321186399,18.90236664,197.51,197.49,0.0383019]
[1739321187307,5.0635,197.5,197.49,0.0383019]
[1739321190303,139.58397686,197.45,197.41,0.03723233]
[1739321190804,0.03576956,197.45,197.41,0.03723233]
[1739321196100,0.03576956,197.45,197.42,5.0655]
[1739321196311,0.03576956,197.45,197.41,0.03723233]
[1739321197606,0.03576956,197.45,197.42,5.0655]
[1739321198005,0.03576956,197.45,197.41,0.03723233]
[1739321199309,0.03576956,197.45,197.41,5.10303233]
[1739321200607,0.03576956,197.45,197.39,13.83906664]
[1739321201010,347.30579992,197.49,197.39,13.83906664]
[1739321201207,347.30579992,197.49,197.31,1.6155]
[1739321201208,361.14486656,197.49,197.36,13.83906664]
[1739321201712,0.03606982,197.44,197.41,0.03671498]
[1739321202512,0.03606982,197.44,197.42,8.87048836]
[1739321202711,0.03606982,197.44,197.42,13.93608836]
[1739321203408,0.03606982,197.44,197.43,5.0653]
[1739321203613,207.75759262,197.49,197.43,13.84982797]
[1739321204409,207.75759262,197.49,197.41,0.03671498]
[1739321204805,5.0649,197.45,197.41,0.03671498]
[1739321205914,5.0649,197.45,197.41,5.10251498]
[1739321206514,0.03709052,197.47,197.41,5.10251498]
[1739321206717,0.03709052,197.47,197.42,5.0655]
[1739321207517,0.03709052,197.47,197.41,0.03671498]
[1739321207717,0.03709052,197.47,197.41,3.00661498]
[1739321209019,0.03709052,197.47,197.41,0.03671498]
[1739321210013,5.0647,197.46,197.41,0.03671498]
[1739321210217,0.03709052,197.47,197.41,0.03671498]
[1739321210824,5.0653,197.44,197.41,0.03671498]
[1739321211117,0.03709052,197.47,197.41,0.03671498]
[1739321211320,5.0656,197.42,197.41,0.03671498]
[1739321211518,0.03709052,197.47,197.41,0.03671498]
[1739321212426,5.0655,197.43,197.41,0.03671498]
[1739321213118,5.0656,197.42,197.41,0.03671498]
[1739321213927,0.03709052,197.47,197.41,139.54501109]
[1739321214623,0.03709052,197.47,197.41,299.66510106]
[1739321215520,0.03709052,197.47,197.46,21.09769601]
[1739321215923,5.10139052,197.47,197.46,21.09769601]
[1739321216227,5.10139052,197.47,197.46,9.601e-05]
[1739321218127,0.03709052,197.47,197.41,99.42159841]
[1739321218329,5.0653,197.43,197.41,99.42159841]
[1739321218527,0.03709052,197.47,197.41,99.42159841]
[1739321218729,5.0656,197.42,197.41,99.42159841]
[1739321219731,5.0653,197.43,197.41,99.42159841]
[1739321220027,0.03709052,197.47,197.41,99.42159841]
[1739321220428,5.0649,197.45,197.41,99.42159841]
[1739321220623,0.03709052,197.47,197.41,99.42159841]
[1739321221030,5.10139052,197.47,197.41,99.42159841]
[1739321221228,5.10139052,197.47,197.41,3.10271498]
[1739321221428,13.84982797,197.55,197.41,3.10271498]
[1739321221624,13.84982797,197.55,197.43,13.84982797]
[1739321221827,13.84982797,197.55,197.41,3.066]
[1739321222330,5.0643,197.47,197.41,3.066]
[1739321222826,0.03892467,197.46,197.42,0.03458582]
[1739321223228,0.03892467,197.46,197.42,5.30820932]
[1739321223829,0.03892467,197.46,197.42,10.37370932]
[1739321224935,13.84982797,197.52,197.42,5.30820932]
[1739321225640,8.86714958,197.49,197.42,8.9017354]
[1739321225835,8.86714958,197.49,197.42,8.86714958]
[1739321226137,5.0652,197.44,197.41,3.066]
[1739321226436,5.0652,197.44,197.41,3.09835379]
[1739321227136,5.0654,197.43,197.41,3.09835379]
[1739321227334,8.86714958,197.43,197.41,0.03235379]
[1739321228240,5.0656,197.42,197.41,0.03235379]
[1739321228441,8.86714958,197.45,197.41,0.03235379]
[1739321228638,5.0653,197.44,197.41,0.03235379]
[1739321228833,8.86714958,197.45,197.41,0.03235379]
[1739321231440,5.0653,197.44,197.41,0.03235379]
[1739321231840,8.86714958,197.45,197.41,0.03235379]
[1739321232037,5.0656,197.42,197.41,0.03235379]
[1739321233246,8.86714958,197.43,197.41,0.03235379]
[1739321234040,13.93254958,197.43,197.41,0.03235379]
[1739321234236,8.86714958,197.43,197.41,0.03235379]
[1739321235643,5.0656,197.42,197.41,0.03235379]
[1739321238846,5.0656,197.42,197.41,5.379e-05]
[1739321247549,0.03717514,197.47,197.41,5.379e-05]
[1739321247550,8.90432472,197.47,197.41,5.379e-05]
[1739321247950,8.86714958,197.43,197.41,5.379e-05]
[1739321248656,5.0656,197.42,197.41,5.379e-05]
[1739321250258,5.0671,197.36,197.35,49.25736051]
[1739321250451,13.93424958,197.36,197.35,49.25736051]
[1739321251153,13.93424958,197.36,197.35,41.43346051]
[1739321251754,5.0674,197.35,197.34,0.0355689]
[1739321253054,8.86714958,197.36,197.34,0.0355689]
[1739321256458,0.03696967,197.37,197.34,0.0355689]
[1739321256654,8.86714958,197.4,197.34,0.0355689]
[1739321256655,8.86714958,197.44,197.36,8.86714958]
[1739321256951,10.5690544,197.5,197.38,8.86714958]
[1739321256952,8.86714958,197.46,197.38,8.86714958]
[1739321257157,13.93174958,197.46,197.38,8.86714958]
[1739321257557,8.86714958,197.44,197.38,1.462]
[1739321257756,13.93224958,197.44,197.4,0.03348774]
[1739321257960,13.97082221,197.44,197.4,0.03348774]
[1739321258453,8.90572221,197.44,197.4,0.03348774]
[1739321258657,0.03857263,197.44,197.4,0.03348774]
[1739321259559,0.03857263,197.44,197.4,8.90063732]
[1739321259862,0.03857263,197.44,197.42,8.86714958]
[1739321260562,0.03857263,197.44,197.4,8.90063732]
[1739321260760,0.03857263,197.44,197.41,5.0658]
[1739321261059,0.03857263,197.44,197.4,8.90063732]
[1739321261462,0.03857263,197.44,197.4,13.96673732]
[1739321261659,0.03857263,197.44,197.4,8.90063732]
[1739321262362,13.93124958,197.48,197.4,8.90063732]
[1739321262562,8.86714958,197.48,197.4,8.90063732]
[1739321262758,8.86714958,197.48,197.42,8.86714958]
[1739321263363,8.86714958,197.5,197.42,8.86714958]
[1739321263555,0.03755124,197.47,197.42,13.93264958]
[1739321263963,0.03755124,197.47,197.42,8.86714958]
[1739321264166,0.03755124,197.47,197.43,0.03528415]
[1739321264668,0.03755124,197.47,197.44,8.86714958]
[1739321265961,0.03755124,197.47,197.43,0.03528415]
[1739321267267,8.86714958,197.52,197.45,5.0648]
[1739321267568,8.86714958,197.52,197.39,3.0768]
[1739321267569,8.86714958,197.52,197.46,11.91764958]
[1739321267768,5.0635,197.51,197.46,3.0505]
[1739321267965,8.86714958,197.52,197.46,3.0505]
[1739321268665,0.03426769,197.51,197.47,0.03899218]
[1739321269369,5.0638,197.49,197.47,0.03899218]
[1739321269570,8.86714958,197.48,197.47,0.03899218]
[1739321270772,13.93114958,197.48,197.47,0.03899218]
[1739321271869,5.0638,197.49,197.47,0.03899218]
[1739321272576,5.09756769,197.51,197.47,0.03899218]
[1739321272767,0.03426769,197.51,197.47,0.03899218]
[1739321274780,5.09756769,197.51,197.47,0.03899218]
[1739321275282,5.0636,197.5,197.47,0.03899218]
[1739321276580,5.09756769,197.51,197.47,0.03899218]
[1739321276983,0.03426769,197.51,197.47,0.03899218]
[1739321277180,8.86714958,197.56,197.5,8.86714958]
[1739321277391,8.86714958,197.58,197.5,8.86714958]
[1739321278184,8.86714958,197.58,197.5,13.93044958]
[1739321278483,0.03563852,197.56,197.52,0.03761326]
[1739321279884,5.09783852,197.56,197.52,0.03761326]
[1739321280587,5.0622,197.55,197.52,0.03761326]
[1739321280987,0.03563852,197.56,197.52,0.03761326]
[1739321281487,5.0627,197.53,197.52,0.03761326]
[1739321282683,5.0627,197.53,197.52,1.326e-05]
[1739321286395,5.0645,197.47,197.41,3.1011]
[1739321286689,5.0645,197.47,197.41,4.5581]
[1739321287289,5.064,197.48,197.41,4.5581]
[1739321287589,0.03886309,197.46,197.42,0.03513527]
[1739321288583,5.10346309,197.46,197.42,0.03513527]
[1739321288990,0.03886309,197.46,197.42,0.03513527]
[1739321289192,5.0653,197.43,197.42,0.03513527]
[1739321292296,5.0653,197.43,197.42,3.527e-05]
[1739321294701,0.03886309,197.46,197.42,3.527e-05]
[1739321296200,5.0653,197.43,197.42,3.527e-05]
[1739321297195,5.065,197.45,197.42,3.527e-05]
[1739321297398,0.03886309,197.46,197.42,3.527e-05]
[1739321297699,5.0648,197.45,197.42,3.527e-05]
[1739321297899,0.03886309,197.46,197.42,3.527e-05]
[1739321298297,5.10346309,197.46,197.42,3.527e-05]
[1739321298497,0.03886309,197.46,197.42,3.527e-05]
[1739321298891,5.0648,197.45,197.42,3.527e-05]
[1739321299398,5.10356309,197.46,197.42,3.527e-05]
[1739321299603,0.03886309,197.46,197.42,3.527e-05]
[1739321300402,5.0653,197.43,197.42,3.527e-05]
[1739321300600,13.93407078,197.43,197.42,3.527e-05]
[1739321302703,13.93357078,197.45,197.42,3.527e-05]
[1739321302904,5.0648,197.45,197.42,3.527e-05]
[1739321303301,5.0651,197.44,197.42,3.527e-05]
[1739321303605,0.03886309,197.46,197.42,3.527e-05]
[1739321303808,0.03886309,197.46,197.42,8.86880605]
[1739321304508,0.03886309,197.46,197.44,8.86877078]
[1739321304807,42.46865231,197.53,197.44,8.86877078]
[1739321305003,5.0625,197.54,197.48,8.86877078]
[1739321305203,8.86877078,197.55,197.48,8.86877078]
[1739321305607,5.063,197.53,197.48,8.86877078]
[1739321305902,0.03551896,197.52,197.49,0.03740687]
[1739321307906,5.09861896,197.52,197.49,0.03740687]
[1739321308212,0.03551896,197.52,197.49,0.03740687]
[1739321309100,5.0633,197.51,197.49,0.03740687]
[1739321309708,0.03551896,197.52,197.49,0.03740687]
[1739321311408,0.03551896,197.52,197.5,8.86877078]
[1739321311610,8.86877078,197.57,197.5,8.86877078]
[1739321312009,8.86877078,197.57,197.5,13.93207078]
[1739321312404,13.93067078,197.57,197.5,8.86877078]
[1739321312802,8.86877078,197.57,197.5,8.86877078]
[1739321313109,0.03600935,197.55,197.5,8.86877078]
[1739321314107,0.03600935,197.55,197.52,8.86877078]
[1739321317204,8.86877078,197.63,197.55,5.062]
[1739321317403,8.86877078,197.63,197.56,8.86877078]
[1739321317606,8.86877078,197.65,197.58,8.86877078]
[1739321318101,8.86877078,197.67,197.6,13.92957078]
[1739321318506,0.03627031,197.63,197.6,0.03591156]
[1739321318906,8.86877078,197.65,197.6,0.03591156]
[1739321319205,0.03678314,197.63,197.6,0.03591156]
[1739321319406,0.03678314,197.63,197.6,8.90468234]
[1739321319603,0.03678314,197.63,197.6,0.03591156]
[1739321322305,5.0591,197.68,197.61,5.0607]
[1739321323505,0.03531626,197.66,197.61,5.0607]
[1739321323705,0.03531626,197.66,197.6,18.9268139]
[1739321324101,0.03531626,197.66,197.63,5.0602]
[1739321324410,13.82990234,197.76,197.63,13.82990234]
[1739321324807,5.0579,197.72,197.64,5.0599]
[1739321325108,13.82990234,197.76,197.63,13.82990234]
[1739321325500,5.0882601,197.71,197.68,0.03834578]
[1739321326606,5.0586,197.69,197.68,0.03834578]
[1739321327913,0.0299601,197.71,197.68,0.03834578]
[1739321329611,5.0584,197.7,197.68,0.03834578]
[1739321330513,0.0299601,197.71,197.68,0.03834578]
[1739321332722,0.0299601,197.71,197.69,5.0584]
[1739321332916,5.0569,197.76,197.69,5.0584]
[1739321333826,5.0569,197.76,197.69,18.88830234]
[1739321334523,114.08990234,197.8,197.69,18.88830234]
[1739321334524,5.0567,197.77,197.7,5.0583]
[1739321335218,5.0567,197.77,197.72,0.03520557]
[1739321336323,5.0571,197.76,197.72,0.03520557]
[1739321336524,114.08990234,197.8,197.72,0.03520557]
[1739321337828,5.0564,197.78,197.72,0.03520557]
[1739321338032,114.08990234,197.8,197.72,0.03520557]
[1739321338427,5.057,197.76,197.72,0.03520557]
[1739321339229,114.08990234,197.8,197.72,0.03520557]
[1739321339729,8.84157372,197.78,197.72,0.03520557]
[1739321339926,5.057,197.76,197.72,0.03520557]
[1739321340532,5.0574,197.75,197.72,0.03520557]
[1739321340830,8.84157372,197.76,197.72,0.03520557]
[1739321341339,5.0575,197.74,197.72,0.03520557]
[1739321341728,8.84157372,197.76,197.72,0.03520557]
[1739321341927,8.84157372,197.78,197.72,0.03520557]
[1739321342525,5.0569,197.76,197.72,0.03520557]
[1739321342730,8.84157372,197.78,197.72,0.03520557]
[1739321343623,109.10157372,197.8,197.73,8.84157372]
[1739321345337,5.0568,197.77,197.73,8.84157372]
[1739321345632,5.0568,197.77,197.72,0.03520557]
[1739321345633,100.26,197.8,197.72,0.03520557]
[1739321345834,5.0571,197.76,197.72,0.03520557]
[1739321346635,5.0566,197.77,197.72,0.03520557]
[1739321346832,100.26,197.8,197.72,0.03520557]
[1739321347038,13.8125976,197.85,197.73,13.8125976]
[1739321347337,13.8125976,197.85,197.74,5.0572]
[1739321347338,5.0555,197.82,197.74,5.0572]
[1739321347539,13.8125976,197.85,197.77,0.03238971]
[1739321348432,5.0563,197.79,197.77,0.03238971]
[1739321349031,5.0563,197.78,197.77,0.03238971]
[1739321350035,5.0561,197.79,197.77,0.03238971]
[1739321350238,13.8125976,197.82,197.77,0.03238971]
[1739321350639,5.0558,197.81,197.77,0.03238971]
[1739321350941,13.8125976,197.85,197.77,0.03238971]
[1739321351136,5.0558,197.81,197.77,0.03238971]
[1739321351939,5.0553,197.83,197.77,0.03238971]
[1739321352342,13.8125976,197.85,197.77,0.03238971]
[1739321352536,5.0553,197.82,197.77,0.03238971]
[1739321353040,59.2783307,197.88,197.77,13.84498731]
[1739321353543,5.0541,197.87,197.79,5.0561]
[1739321353936,43.9497331,197.88,197.79,5.0561]
[1739321354137,47.4495331,197.88,197.81,5.09179101]
[1739321354343,42.3955331,197.88,197.81,5.09179101]
[1739321355046,42.3955331,197.88,197.82,5.0552]
[1739321355246,13.8125976,197.91,197.82,5.0552]
[1739321355444,16.8813976,197.94,197.81,0.03619101]
[1739321355641,5.053,197.91,197.83,5.055]
[1739321356139,5.053,197.92,197.86,0.03647945]
[1739321356339,16.8813976,197.94,197.86,0.03647945]
[1739321356737,5.0533,197.9,197.86,0.03647945]
[1739321358245,5.0536,197.89,197.86,0.03647945]
[1739321359651,16.8813976,197.94,197.86,0.03647945]
[1739321359848,0.92899298,197.93,197.86,0.03647945]
[1739321360044,5.054,197.87,197.86,0.03647945]
[1739321361447,13.8125976,197.88,197.76,47.94993362]
[1739321361650,13.8125976,197.85,197.76,47.94993362]
[1739321362543,5.0554,197.82,197.76,47.94993362]
[1739321362740,0.03647944,197.82,197.79,0.03476366]
[1739321363553,5.0558,197.8,197.79,0.03476366]
[1739321365047,0.03647944,197.82,197.79,0.03476366]
[1739321365950,5.09197944,197.82,197.79,0.03476366]
[1739321366150,0.03647944,197.82,197.79,0.03476366]
[1739321367451,5.0558,197.8,197.79,0.03476366]
[1739321367952,0.03647944,197.82,197.79,0.03476366]
[1739321370856,5.09207944,197.82,197.79,0.03476366]
[1739321371056,0.03647944,197.82,197.79,0.03476366]
[1739321371252,5.0556,197.81,197.79,0.03476366]
[1739321371755,0.03647944,197.82,197.79,0.03476366]
[1739321372956,0.03647944,197.82,197.8,13.8125976]
[1739321374356,0.03647944,197.82,197.81,5.0556]
[1739321375256,0.18773,197.92,197.8,13.8125976]
[1739321375462,0.18773,197.92,197.84,13.8125976]
[1739321376355,0.18773,197.92,197.86,0.03683966]
[1739321376755,5.0534,197.9,197.86,0.03683966]
[1739321377356,5.0531,197.91,197.86,0.03683966]
[1739321377559,0.18773,197.92,197.86,0.03683966]
[1739321378553,5.0531,197.91,197.86,0.03683966]
[1739321379056,5.0533,197.9,197.86,0.03683966]
[1739321380562,5.0536,197.89,197.86,0.03683966]
[1739321382058,0.18773,197.92,197.86,0.03683966]
[1739321382361,5.0533,197.9,197.86,0.03683966]
[1739321382566,0.18773,197.92,197.86,0.03683966]
[1739321382768,5.0531,197.91,197.86,0.03683966]
[1739321382963,0.18773,197.92,197.86,0.03683966]
[1739321383169,0.18773,197.92,197.88,13.8125976]
[1739321383368,0.18773,197.92,197.88,18.8661976]
[1739321383563,0.18773,197.92,197.88,13.8125976]
[1739321385365,5.0519,197.96,197.89,5.0533]
[1739321385575,42.37836147,197.98,197.88,13.8125976]
[1739321385762,5.0522,197.95,197.91,0.03837973]
[1739321386772,42.37836147,197.98,197.91,0.03837973]
[1739321386971,5.0523,197.94,197.91,0.03837973]
[1739321387366,13.8125976,198.0,197.91,0.03837973]
[1739321387567,5.0528,197.92,197.91,0.03837973]
[1739321387767,13.8125976,198.0,197.91,0.03837973]
[1739321388263,5.0525,197.93,197.91,0.03837973]
[1739321388472,13.8125976,198.0,197.91,0.03837973]
[1739321389269,13.8125976,197.97,197.91,0.03837973]
[1739321389471,13.8125976,197.94,197.91,0.03837973]
[1739321389775,5.0528,197.92,197.91,0.03837973]
[1739321394176,15.2896976,197.97,197.91,0.03837973]
[1739321394368,13.8125976,197.97,197.91,0.03837973]
[1739321394572,13.8125976,198.04,197.91,13.85097733]
[1739321395074,5.051,197.99,197.91,18.90377733]
[1739321395282,13.8125976,198.04,197.91,13.85097733]
[1739321395779,5.0507,198.01,197.91,13.85097733]
[1739321396278,5.26163,198.02,197.91,13.85097733]
[1739321396477,5.26163,198.02,197.94,13.8125976]
[1739321396673,0.21133,198.02,197.94,13.8125976]
[1739321397079,0.21133,198.02,197.96,0.03245584]
[1739321398176,5.26163,198.02,197.96,0.03245584]
[1739321398381,0.21133,198.02,197.96,0.03245584]
[1739321399280,5.26173,198.02,197.96,0.03245584]
[1739321399477,0.21133,198.02,197.96,0.03245584]
[1739321399977,5.0508,198.0,197.96,0.03245584]
[1739321400178,0.21133,198.02,197.96,0.03245584]
[1739321401288,5.26173,198.02,197.96,0.03245584]
[1739321401488,0.21133,198.02,197.96,0.03245584]
[1739321402787,5.0515,197.97,197.96,0.03245584]
[1739321403285,0.21133,198.02,197.96,0.03245584]
[1739321403896,5.0514,197.98,197.96,0.03245584]
[1739321404591,0.21133,198.02,197.96,0.03245584]
[1739321405291,5.0507,198.01,197.96,0.03245584]
[1739321405492,0.21133,198.02,197.96,0.03245584]
[1739321405892,5.051,197.99,197.96,0.03245584]
[1739321406087,0.21133,198.02,197.96,0.03245584]
[1739321406694,13.8125976,198.04,197.96,0.03245584]
[1739321407090,13.8125976,198.01,197.96,0.03245584]
[1739321407292,13.8125976,198.01,197.92,3.0553]
[1739321407596,13.8125976,198.01,197.97,0.03766423]
[1739321408692,13.8125976,198.04,197.97,0.03766423]
[1739321408994,5.0509,198.0,197.97,0.03766423]
[1739321409197,13.8125976,198.04,197.97,0.03766423]
[1739321411599,5.0512,197.98,197.97,0.03766423]
[1739321411802,13.8125976,198.04,197.97,0.03766423]
[1739321412200,5.0509,198.0,197.97,0.03766423]
[1739321413599,5.0504,198.02,197.97,0.03766423]
[1739321414600,5.0497,198.04,197.97,0.03766423]
[1739321414795,1.5536,198.08,197.97,0.03766423]
[1739321414995,113.8925976,198.1,197.99,13.8125976]
[1739321415698,5.0487,198.08,198.03,0.03608564]
[1739321415898,113.8925976,198.1,198.03,0.03608564]
[1739321416301,5.0492,198.07,198.03,0.03608564]
[1739321416704,13.8125976,198.07,198.03,0.03608564]
[1739321417297,5.0497,198.04,197.95,18.8645976]
[1739321417502,13.8125976,198.07,197.95,18.8645976]
[1739321417699,5.0502,198.03,197.95,18.8645976]
[1739321418505,5.0502,198.03,197.96,5.0517]
[1739321418701,0.03543935,198.01,197.97,0.03649955]
[1739321420096,13.84803695,198.01,197.97,0.03649955]
[1739321420795,5.0508,198.0,197.97,0.03649955]
[1739321420993,0.03543935,198.01,197.97,0.03649955]
[1739321421803,5.08593935,198.01,197.97,0.03649955]
[1739321422494,0.03543935,198.01,197.97,0.03649955]
[1739321423801,5.0508,198.0,197.97,0.03649955]
[1739321424100,0.03543935,198.01,197.97,0.03649955]
[1739321425499,5.08593935,198.01,197.97,0.03649955]
[1739321425905,0.03543935,198.01,197.97,0.03649955]
[1739321426305,0.03543935,198.01,197.99,13.8125976]
[1739321427203,0.23367,198.12,197.99,13.8125976]
[1739321427398,5.0485,198.09,198.02,13.8125976]
[1739321428314,0.23367,198.12,198.04,0.03620617]
[1739321429204,5.0485,198.09,198.04,0.03620617]
[1739321429608,0.23367,198.12,198.04,0.03620617]
[1739321430008,5.0484,198.1,198.04,0.03620617]
[1739321430403,13.8125976,198.16,198.04,0.03620617]
[1739321430707,13.8125976,198.16,198.05,13.8125976]
[1739321431006,5.0485,198.09,198.05,13.8125976]
[1739321431305,13.8125976,198.16,198.09,0.03668432]
[1739321431704,5.0475,198.13,198.05,13.8125976]
[1739321431904,13.8125976,198.16,198.11,0.03598783]
[1739321432103,13.8125976,198.16,198.05,13.8125976]
[1739321432305,5.0475,198.13,198.12,0.03411508]
[1739321437906,13.8125976,198.16,198.12,0.03411508]
[1739321438110,14.0648676,198.19,198.12,0.03411508]
[1739321438608,5.0472,198.15,198.12,0.03411508]
[1739321438806,14.0648676,198.19,198.12,0.03411508]
[1739321439513,5.0471,198.15,198.12,0.03411508]
[1739321439808,14.0648676,198.19,198.12,0.03411508]
[1739321440407,5.0474,198.13,198.12,0.03411508]
[1739321442311,5.0474,198.13,198.12,1.508e-05]
[1739321452624,0.03409999,198.14,198.12,1.508e-05]
[1739321452828,5.08129999,198.14,198.12,1.508e-05]
[1739321453436,0.03409999,198.14,198.12,1.508e-05]
[1739321458732,5.08129999,198.14,198.12,1.508e-05]
[1739321459233,0.03409999,198.14,198.12,1.508e-05]
[1739321459527,5.0474,198.13,198.12,1.508e-05]
[1739321461328,5.08129999,198.14,198.12,1.508e-05]
[1739321461537,0.03409999,198.14,198.12,1.508e-05]
[1739321462030,5.08129999,198.14,198.12,1.508e-05]
[1739321462427,0.03409999,198.14,198.12,1.508e-05]
[1739321462926,5.08129999,198.14,198.12,1.508e-05]
[1739321463525,0.03409999,198.14,198.12,1.508e-05]
[1739321463734,5.0474,198.13,198.12,1.508e-05]
[1739321463936,0.03409999,198.14,198.12,1.508e-05]
[1739321464330,5.0474,198.13,198.12,1.508e-05]
[1739321466538,13.88863715,198.14,198.12,1.508e-05]
[1739321467234,8.84123715,198.14,198.12,1.508e-05]
[1739321467432,5.0474,198.13,198.12,1.508e-05]
[1739321468435,8.84123715,198.14,198.12,1.508e-05]
[1739321468636,0.03409999,198.14,198.12,1.508e-05]
[1739321470338,13.88863715,198.14,198.12,1.508e-05]
[1739321470637,8.84123715,198.14,198.12,1.508e-05]
[1739321471138,5.0474,198.13,198.12,1.508e-05]
[1739321473136,13.88853715,198.14,198.12,1.508e-05]
[1739321473337,8.84123715,198.14,198.12,1.508e-05]
[1739321473836,8.84123715,198.14,198.04,7.01625915]
[1739321474039,8.80713716,198.07,198.04,7.01625915]
[1739321475136,8.84125224,198.07,198.04,7.05221979]
[1739321475534,13.89025224,198.07,198.04,7.05221979]
[1739321475934,8.84125224,198.07,198.04,7.05221979]
[1739321476138,8.84125224,198.07,198.04,0.03596064]
[1739321476837,13.89025224,198.07,198.04,0.03596064]
[1739321477034,8.80713716,198.05,198.04,0.03596064]
[1739321477243,13.85663716,198.05,198.04,0.03596064]
[1739321478933,8.80713716,198.05,198.04,0.03596064]
[1739321479243,8.84125224,198.07,198.04,0.03596064]
[1739321479740,8.80713716,198.05,198.04,0.03596064]
[1739321480446,13.85663716,198.05,198.04,0.03596064]
[1739321481043,8.80713716,198.05,197.95,7.01625915]
[1739321481243,8.80713716,197.99,197.95,7.01625915]
[1739321481546,13.85833716,197.99,197.95,7.01625915]
[1739321481738,8.80713716,197.99,197.95,7.01625915]
[1739321482336,8.83964337,197.99,197.95,7.05042913]
[1739321483045,8.83964337,197.99,197.95,0.03416998]
[1739321484042,13.89064337,197.99,197.95,0.03416998]
[1739321484443,8.83964337,197.99,197.95,0.03416998]
[1739321484845,5.0513,197.98,197.95,0.03416998]
[1739321485048,8.83964337,197.99,197.95,0.03416998]
[1739321485547,5.0512,197.98,197.95,0.03416998]
[1739321486049,8.83964337,197.99,197.95,0.03416998]
[1739321486241,13.89064337,197.99,197.95,0.03416998]
[1739321487248,8.80713716,197.97,197.95,0.03416998]
[1739321487651,5.0518,197.96,197.95,0.03416998]
[1739321489543,8.80713716,197.93,197.87,8.80713716]
[1739321490444,8.80713716,197.91,197.86,2.9792]
[1739321490646,13.86023716,197.91,197.88,0.03313791]
[1739321491351,8.80713716,197.91,197.88,0.03313791]
[1739321492047,0.03655791,197.92,197.88,5.08693791]
[1739321492351,0.03655791,197.92,197.88,0.03313791]
[1739321493347,13.86023716,197.91,197.88,0.03313791]
[1739321493546,8.80713716,197.91,197.88,0.03313791]
[1739321494454,13.86013716,197.91,197.88,0.03313791]
[1739321494650,8.80713716,197.91,197.88,0.03313791]
[1739321494851,0.03655791,197.92,197.88,0.03313791]
[1739321497655,0.03655791,197.92,197.91,8.80713716]
[1739321497858,13.85813716,197.99,197.92,5.0527]
[1739321498056,13.85813716,197.99,197.93,8.80713716]
[1739321499055,0.03278087,197.98,197.94,0.03760277]
[1739321499455,0.03278087,197.98,197.95,8.80713716]
[1739321499860,0.03278087,197.98,197.97,8.80713716]
[1739321501455,0.03278087,197.98,197.95,11.80863716]
[1739321501655,0.03278087,197.98,197.95,3.0015]
[1739321501955,0.03278087,197.98,197.95,11.80863716]
[1739321502156,0.03278087,197.98,197.96,5.0517]
[1739321502661,8.80713716,198.03,197.97,8.80713716]
[1739321502861,13.85683716,198.05,197.98,5.0512]
[1739321503062,13.85683716,198.05,197.99,8.80713716]
[1739321503954,0.03420087,198.04,198.0,0.03414633]
[1739321504662,5.08400087,198.04,198.0,0.03414633]
[1739321505654,13.85733716,198.03,198.0,0.03414633]
[1739321506162,8.80713716,198.03,198.0,0.03414633]
[1739321506362,13.85763716,198.01,198.0,0.03414633]
[1739321509365,8.80713716,198.01,198.0,0.03414633]
[1739321510666,13.85763716,198.01,198.0,0.03414633]
[1739321511967,5.0518,197.96,197.91,2.9732]
[1739321512160,8.80713716,197.95,197.91,2.9732]
[1739321513264,8.84181313,197.95,197.91,3.01027197]
[1739321513867,8.84181313,197.95,197.91,8.06317197]
[1739321514165,8.84181313,197.95,197.91,3.01027197]
[1739321514866,8.84181313,197.95,197.91,0.03707197]
[1739321515065,8.80713716,197.93,197.91,0.03707197]
[1739321515570,5.0528,197.92,197.91,0.03707197]
[1739321516161,8.80713716,197.93,197.91,0.03707197]
[1739321516967,0.03467597,197.95,197.91,8.84420913]
[1739321517757,0.03467597,197.95,197.91,13.89720913]
[1739321518961,5.0512,197.99,197.93,8.80713716]
[1739321518962,8.80713716,197.99,197.93,8.80713716]
[1739321519266,13.85763716,198.01,197.95,8.80713716]
[1739321519565,5.0505,198.01,197.93,5.0525]
[1739321520267,0.03437728,197.99,197.95,0.03256972]
[1739321520467,13.78149059,198.0,197.92,1.4625]